Cogmind - Beta 14 @@@ ROGUE MODE // 2024.08.21 @ 16:19:20 Player: Decinym Result: Destroyed self with Rocket Launcher Performance ------------- Evolutions (0) 0 Regions Visited (2) 400 Robots Destroyed (22) 110 Value Destroyed (450) 450 Prototype IDs (0) 0 Alien Tech Used (0) 0 Bonus (0) 0 TOTAL SCORE: 960 Bonus ------- None Cogmind --------- Core Integrity 0/250 Matter 227/300 Energy 80/100 System Corruption 0% Temperature Warning (345) Movement Treading (240) Ox1 Location -10/Mines Parts ------- > --- POWER (1) -------- (None) > --- PROPULSION (2) --- Light Treads Light Treads > --- UTILITY (2) ------ High-capacity Storage Unit Light Armor Plating > --- WEAPON (2) ------- Light Assault Rifle Rocket Launcher > --- INVENTORY (20) --- Ion Engine Ion Engine Light Ion Engine Light Treads Light Treads Wheel Wheel Structural Scanner Light Armor Plating Light Armor Plating Light Armor Plating Small Laser Particle Gun Light Assault Rifle Mining Laser Peak State ------------ > --- POWER ------------ Ion Engine > --- PROPULSION ------- Light Treads Light Treads > --- UTILITY ---------- High-capacity Storage Unit Light Armor Plating > --- WEAPON ----------- Medium Laser Light Assault Rifle > --- INVENTORY -------- Ion Engine Ion Engine Light Ion Engine Light Treads Light Treads Light Treads Wheel Wheel Structural Scanner Light Armor Plating Light Armor Plating Light Armor Plating Light Armor Plating Small Laser Particle Gun Light Assault Rifle Rocket Launcher Mining Laser [Rating: 9] Favorites ----------- Power Ion Engine Engine Ion Engine Propulsion Light Treads Treads Light Treads Leg Aluminum Leg Utility High-capacity Storage Unit Storage High-capacity Storage Unit Protection Light Armor Plating Weapon Medium Laser Energy Gun Medium Laser Ballistic Gun Light Assault Rifle Launcher Rocket Launcher Build | -11 -10 -10 ------- Run | Yrd Mat Min Slots Evolved . | . . . Power . | . . . Propulsion . | . . . Utility . | . . . Weapon . | . . . Parts Attached 19 | . 14 5 Power 2 | . 2 . Engine 2 | . 2 . Core . | . . . Reactor . | . . . Propulsion 4 | . 3 1 Treads 4 | . 3 1 Leg . | . . . Wheel . | . . . Hover . | . . . Flight . | . . . Utility 7 | . 6 1 Device . | . . . Storage 1 | . 1 . Processor . | . . . Hackware . | . . . Protection 6 | . 5 1 Artifact . | . . . Weapon 6 | . 3 3 Energy Gun 3 | . 2 1 Energy Cannon . | . . . Ballistic Gun 2 | . 1 1 Ballistic Cannon . | . . . Launcher 1 | . . 1 Special Weapon . | . . . Impact Weapon . | . . . Slashing Weapon . | . . . Piercing Weapon . | . . . Special Melee Weapon . | . . . Unidentified Prototypes . | . . . Parts Lost 8 | . 4 4 Power 1 | . . 1 Propulsion 1 | . . 1 Utility 3 | . 2 1 Weapon 3 | . 2 1 Highest Loss Streak 3 | . 2 3 To Critical Strikes . | . . . Average Slot Usage (%) 98 | . 98 99 Engine 13 | . 13 14 Treads 24 | . 23 27 Leg 3 | . 4 . Storage 14 | . 14 14 Protection 13 | . 12 14 Energy Gun 16 | . 17 13 Ballistic Gun 11 | . 10 14 Peak Build Rating 9 | . 8 9 Average Rating 8 | . 7 8 On Entrance 6 | 6 6 8 Naked Turns . | . . . Heaviest Build 52 | 14 52 51 Greatest Support 40 | 20 40 40 Greatest Overweight (x) 2 | . 2 1 Average Overweight (x) 1 | . 1 1 Largest Inventory Capacity 20 | . 20 20 Average Capacity 19 | . 19 20 Most Carried 19 | . 19 18 Average Carried 16 | . 16 17 Final Capacity 20 | 8 20 20 Final Carried 16 | 6 16 15 Class Distribution -------------------- 100% | Mutant Dominant Class ---------------- Mutant | -10/Materials Mutant | -10/Mines Resources | -11 -10 -10 ----------- Run | Yrd Mat Min Matter Collected 489 | 200 283 6 Remotely . | . . . Salvage Created 668 | . 573 95 Parts 37 | . 26 11 Haulers Intercepted 2 | . 2 . Recyclers Shooed 1 | . . 1 Parts Field Recycled . | . . . Retrieved Matter . | . . . Parts Self-Destructed . | . . . Prevented . | . . . Kills | -11 -10 -10 ------- Run | Yrd Mat Min Combat Hostiles Destroyed 17 | . 11 6 Guns 16 | . 11 5 AOE 1 | . . 1 Classes Destroyed 10 | . 6 4 Worker 1 | . 1 . Builder 1 | . . 1 Tunneler 1 | . . 1 Hauler 2 | . 2 . Recycler 1 | . 1 . Watcher 1 | . 1 . Swarmer 6 | . 3 3 Grunt 8 | . 8 . Demolisher 1 | . . 1 Assembled 2 | . . 2 Best Kill Streak 3 | . 3 3 Combat Bots Only 3 | . 3 3 Max Kills in Single Turn 2 | . 1 2 Gunslinging 1 | . . 1 Exploded 1 | . . 1 Melee . | . . . Uniques/NPCs Destroyed . | . . . Combat | -11 -10 -10 -------- Run | Yrd Mat Min Hostile Shots Fired 128 | . 79 49 Missed 26 | . 15 11 Damage Taken 1531 | . 752 779 Core 259 | . 128 131 Absorbed by Shields . | . . . Core Remaining (%) 100 | 100 . . Volleys Fired 106 | . 79 27 Largest 2 | . 2 2 Hottest 90 | . 90 85 Shots Fired 211 | . 158 53 Gun 210 | . 158 52 Cannon . | . . . Launcher 1 | . . 1 Special . | . . . Kinetic 99 | . 64 35 Thermal 111 | . 94 17 Explosive 1 | . . 1 Electromagnetic . | . . . Robot Hit Streak 15 | . 15 6 Robot Miss Streak 4 | . 4 3 Penetration Max . | . . . Secondary Targets 2 | . . 2 Max Gunslinging Chain 1 | . . 1 Shots Hit Robots 135 | . 107 28 Core Hits 48 | . 33 15 Critical Kills . | . . . Critical Parts Destroyed . | . . . Critical Strikes 6 | . 5 1 Burn 6 | . 5 1 Melee Attacks . | . . . Impact . | . . . Slashing . | . . . Piercing . | . . . Sneak Attacks . | . . . Combat Hostiles . | . . . Follow-up Attacks . | . . . Damage Inflicted 1715 | . 1330 385 Guns 1609 | . 1314 295 Cannons . | . . . Explosions 82 | . . 82 Melee . | . . . Ramming 24 | . 16 8 Kinetic 645 | . 506 139 Thermal 964 | . 808 156 Explosive 82 | . . 82 Electromagnetic . | . . . Impact . | . . . Slashing . | . . . Piercing . | . . . Highest Corruption . | . . . Average Corruption . | . . . Corruption Purged . | . . . Corruption Blocked . | . . . Overload Shots . | . . . Overflow Damage . | . . . Projectiles . | . . . Explosions . | . . . Melee . | . . . Knockbacks . | . . . Impact . | . . . Kinetic . | . . . Secondary . | . . . Self-Inflicted Damage 40 | . . 40 Shots 1 | . . 1 Rammed 4 | . 3 1 Targets Rammed 5 | . 3 2 Kicked . | . . . Crushed 1 | . . 1 Highest Temperature 391 | . 337 391 Average Temperature 106 | . 88 178 Received Heat Transfer 616 | . 396 220 Effects 1 | . . 1 Shutdowns 1 | . . 1 Siege Activations . | . . . Robots Corrupted . | . . . Combat Hostiles . | . . . Parts Fried . | . . . Impact Corruptions . | . . . Robots Melted . | . . . Combat Hostiles . | . . . Parts Melted 6 | . 6 . Heat Transferred 3174 | . 2693 481 Parts Sabotaged . | . . . Parts Stolen . | . . . Parts Stripped . | . . . Power Chain Reactions . | . . . Alert | -11 -10 -10 ------- Run | Yrd Mat Min Peak Influence 206 | . 206 75 Initial . | . . . Average 39 | . 41 36 Maximum Alert Level 1 | . 1 . Low Security (%) 98 | . 98 100 Level 1 1 | . 1 . Level 2 . | . . . Level 3 . | . . . Level 4 . | . . . Level 5 . | . . . High Security . | . . . Max Security . | . . . Squads Dispatched 3 | . 3 . Investigation 1 | . 1 . Extermination . | . . . Reinforcement 2 | . 2 . Assault . | . . . Garrison . | . . . Intercept . | . . . Searches Triggered . | . . . Construction Impeded . | . . . Haulers Reinforced . | . . . Active Scanning Responses . | . . . Cargo Convoy Interrupts . | . . . Stealth | -11 -10 -10 --------- Run | Yrd Mat Min Distress Signals 1 | . . 1 Communications Jammed . | . . . Distress Signals . | . . . Times Spotted 39 | . 30 9 Peak Tracking Total 5 | . 5 3 Tactical Retreats 2 | . 2 . Traps | -11 -10 -10 ------- Run | Yrd Mat Min Traps Triggered 3 | . 3 . Indirectly . | . . . Trap Hack Attempts . | . . . Triggered . | . . . Disarmed . | . . . Reprogrammed 4 | . 4 . Reused . | . . . Traps Extracted . | . . . Installed . | . . . Triggered . | . . . Machines | -11 -10 -10 ---------- Run | Yrd Mat Min Machines Disabled . | . . . Max in Single Turn . | . . . Machines Repaired . | . . . Machines Dismantled . | . . . Machines Sabotaged . | . . . Overloaded Fab Kills . | . . . Hacking | -11 -10 -10 --------- Run | Yrd Mat Min Machines Accessed 6 | . 6 . Terminals 6 | . 6 . Fabricators . | . . . Repair Stations . | . . . Recycling Units . | . . . Scanalyzers . | . . . Garrison Access . | . . . Total Hacks 17 | . 17 . Successful 9 | . 9 . Failed 8 | . 8 . Catastrophic . | . . . Database Lockouts . | . . . Manual 14 | . 14 . Terminals 17 | . 17 . Fabricators . | . . . Repair Stations . | . . . Recycling Units . | . . . Scanalyzers . | . . . Garrison Access . | . . . Terminal Hacks 4 | . 4 . Robot Analysis 1 | . 1 . Terminal Index 1 | . 1 . Locate Traps 1 | . 1 . Reprogram Traps 1 | . 1 . Fabricator Hacks . | . . . Repair Station Hacks . | . . . Recycling Unit Hacks . | . . . Scanalyzer . | . . . Garrison Access Hacks . | . . . Unauthorized Hacks 5 | . 5 . Terminals 5 | . 5 . Skim 5 | . 5 . Fabricators . | . . . Repair Stations . | . . . Recycling Units . | . . . Scanalyzers . | . . . Garrison Access . | . . . Data Cores Recovered . | . . . Used . | . . . Hacking Detections 6 | . 6 . Full Trace Events . | . . . Feedback Events . | . . . Feedback Blocked . | . . . Robot Schematics Acquired . | . . . Robots Built . | . . . Authchips . | . . . Time . | . . . Total Robot Build Rating . | . . . Part Schematics Acquired . | . . . Parts Built . | . . . Authchips . | . . . Time . | . . . Total Part Build Rating . | . . . Parts Repaired . | . . . Time . | . . . Parts Recycled . | . . . Recycled Matter . | . . . Retrieved Matter . | . . . Retrieved Components . | . . . Parts Scanalyzed . | . . . Part Schematics Acquired . | . . . Parts Damaged . | . . . Bothacking | -11 -10 -10 ------------ Run | Yrd Mat Min Used RIF Installer . | . . . Robots Hacked . | . . . Non-combat . | . . . Combat . | . . . Robot Hacks Applied . | . . . Relay Couplers Released . | . . . Fabnet Peak Effective % . | . . . Robots Rewired . | . . . Allies Hacked . | . . . Hacks Repelled . | . . . Allies | -11 -10 -10 -------- Run | Yrd Mat Min Total Allies . | . . . Largest Group . | . . . Highest-Rated Group . | . . . Highest-Rated Ally . | . . . Total Orders . | . . . Ally Attacks . | . . . Total Damage . | . . . Kills . | . . . Allies Corrupted . | . . . Allies Melted . | . . . Intel | -11 -10 -10 ------- Run | Yrd Mat Min Robot Analysis Total 1 | . 1 . Derelict Logs Recovered 2 | . . 2 Drone Launches . | . . . Drone Recoveries . | . . . Exploration | -11 -10 -10 ------------- Run | Yrd Mat Min Turns Passed 3087 | . 2268 819 Spaces Moved 1026 | 1 719 306 Core . | . . . Treads 921 | . 615 306 Legs 105 | 1 104 . Wheels . | . . . Hover . | . . . Flight . | . . . Fastest Speed 120 | 120 120 240 Average Speed 241 | 120 242 240 Slowest Speed 260 | 120 260 240 Overloaded Moves . | . . . Propulsion Burnouts . | . . . Robots Hopped . | . . . Cave-ins Triggered . | . . . Exploration Rate (%) 59 | 1 94 82 Regions Visited 2 Branch Regions 1 Pre-discovered Areas 3 | . 2 1 Known Exits Taken 1 | . 1 . Unknown Exits Taken 1 | 1 . . Scrap Searched 1 | . . 1 Spaces Dug . | . . . Terrain Destroyed . | . . . Melee . | . . . Projectile . | . . . AOE . | . . . Terrain Rammed . | . . . Walls Destroyed . | . . . Machines Disabled . | . . . Actions | -11 -10 -10 --------- Run | Yrd Mat Min Total 1428 | . 1086 342 Wait 250 | . 250 . Move 1024 | . 718 306 Hop . | . . . Pick Up 19 | . 17 2 Fast Attach 7 | . 7 . Attach 10 | . 7 3 Detach . | . . . Swap 2 | . . 2 Drop 5 | . 5 . Fire 106 | . 79 27 Melee . | . . . Ram . | . . . Kick . | . . . Crush 5 | . 3 2 Escape Stasis . | . . . Rewire . | . . . Trap . | . . . Miscellaneous . | . . . Route ------- -11/Scrapyard -10/Materials (discovered 6 exits: [*Mat x3] / *Min x2 / Sub) -10/Mines (discovered 2 exits: [*Mat x2]) History --------- Turn | Location | Event 1 | -11/Scrapyard | Discovered new exit (range 0) 1 | -11/Scrapyard | Entered Materials 301 | -10/Materials | Build established: Mutant 605 | -10/Materials | Discovered new exit (range 11) 1003 | -10/Materials | Discovered new exit (range 13) 1351 | -10/Materials | Discovered new exit (range 7) 1683 | -10/Materials | Core integrity fell below 50% 1698 | -10/Materials | Discovered new exit (range 14) 1823 | -10/Materials | Identified exit to Subcaves 1823 | -10/Materials | Identified exit to Mines 1880 | -10/Materials | Learned location of Recycling (-9) 1964 | -10/Materials | Loaded intel: 11 trap records 2038 | -10/Materials | Learned location of Mines (-10) 2269 | -10/Materials | Entered Mines 2372 | -10/Mines | Discovered new exit (range 16) 2525 | -10/Mines | Received a Rocket Launcher from a helpful Derelict 2833 | -10/Mines | Discovered new exit (range 16) 3005 | -10/Mines | Assembled infested the area 3011 | -10/Mines | Learned location of Zion (-6) 3048 | -10/Mines | Core integrity fell below 20% 3076 | -10/Mines | Lost 3 parts (1n1u1w) 3088 | -10/Mines | Destroyed self with Rocket Launcher Last Messages --------------- 03033_ Med. Laser destroyed. 03034_ The unstable cave ceiling collapses. 03034_ D-53 Grenadier destroyed. 03035_ The unstable cave ceiling collapses. 03039_ Lgt. Treads destroyed. 03042_ The unstable cave ceiling collapses. 03045_ Lgt. Armor Plating destroyed. 03046_ The unstable cave ceiling collapses. 03049_ D-53 Grenadier destroyed. 03050_ The unstable cave ceiling collapses. 03050_ as-71014 suffers critical hit (Burn). 03053_ The unstable cave ceiling collapses. 03056_ as-71014 destroyed. 03056_ Switching to secondary target: as-45244. 03058_ The unstable cave ceiling collapses. 03074_ Power failure, Ion Engine shutdown. 03080_ Ion Engine destroyed. 03082_ The unstable cave ceiling collapses. 03084_ K-01 Serf collects debris. 03088_ as-45244 destroyed. Map ----- +----------------------------------------------------+ | #### #??? | | """ ##??## ##??? | | ## """ #????#### #???? | | ### """ #???????## #???? | | #?# """ #???????# #???? | | #?# #??????# ##???? | | #? ?????## ##????? | | #? ?????# #?????? | | ## ## ##?????? | | ## ### ?# ##??????? | | ## ##?## ?# #???????? | | #? ##?????# ?# #???????? | | ## #??????## #?#!#???????? | | #???????# #?# #???????? | | #####???????# ## #???????? | | ????????????# ######??? | | ????????????## ## #??? | | ###########????????# #### #??? | | #????????# #??# #??? | | " """ = #????????# #??# ###? | | " """*% #????????# #### ## | | " """ #????????# k# | | =#????????# | | " """ """%#???????## # # | | " """ """ #???????# % # | | " """ """ #???????## %@ # | | |!% % %#????????## aa ## | | ####### ###?????????### # | | ??????# #???????????## %# # | | #?????# #????????????## # | | ####### #?????????????# ### ## | | #?????????????# #??###? | | #?????????????# #?????? | | ### ##?????????????# #?????? | | #?# #??????????????# #?????? | | ##?# #??????????????# #?????? | | #??# #?????????????? #?????? | | #??# #?????????????? #?????? | | #??# ??????????????###?????? | | #??###??????????????????????? | | #???????????????????????????? | | #???????????????????????????? | | #???????????????????????????? | | ???????????????????????????? | | ???????????????????????????? | | ???????????????????????????? | | #???????????????????????????? | | ????????????????????????????? | | ??????????????????????????????? | | ??????????????????????????????? | +----------------------------------------------------+ Best States ------------- Heat Dissipation 25 Energy Generation 10 Energy Capacity 250 Matter Stores 300 Matter Capacity 300 Sight Range 16 Terrain Scan Density 10 Armor Coverage 150 Evasion (%) 40 Recoil Reduction 2 Item Schematics ----------------- None Robot Schematics ------------------ None Fabricated ------------ Nothing Alien Tech Used ----------------- None Achievements -------------- None Challenges ------------ None Game ------ Seed ParticleWaveRecalibrator Manual? 0 Play Time 00:11:21 Cumulative 431.2 hours Start 2024.08.21 @ 16:09:12 End 2024.08.21 @ 16:19:20 Sessions 1 Manual Loads 0 Difficulty Rogue Special Mode None Game No. 435 Rogue 435 Adventurer 0 Explorer 0 Win Type - Total 31 Types 16/3/6/1/2/0/3/0/0 Lore% 85 Gallery% 88 Achievement% 82 Wizard Run 0 Options --------- Layout 0 ASCII 0 Keyboard 0 Movement Arrows Keybinds 0 Fullscreen 2 Font 24/Smallcaps Map View 76x50 Zoom Use 0% Tactical HUD 1 Map Filters NONE Filters NONE Steam 1 RUN: a3d79a5d-71a1-408a-8b5f-b7556b8e32c3